bitfinex/quotes_SOLUSD_20251206
["timestamp","ask_amount","ask_price","bid_price","bid_amount"]
[1765031767359,5.10117988,133.56,133.54,0.68]
[1765031771367,5.10117988,133.55,133.54,0.67]
[1765031774088,5.10117988,133.56,133.54,0.67]
[1765031775287,5.10117988,133.55,133.52,29.97390947]
[1765031775512,5.10117988,133.53,133.47,18.73071552]
[1765031775790,5.10117988,133.51,133.49,0.67]
[1765031777286,5.10117988,133.5,133.48,22.49297094]
[1765031777583,5.10117988,133.49,133.46,0.67]
[1765031778286,5.10117988,133.49,133.46,8.16008325]
[1765031778461,5.10117988,133.5,133.46,8.16008325]
[1765031778660,5.10117988,133.5,133.47,0.67]
[1765031779662,12.591948,133.5,133.47,0.67]
[1765031780086,12.591948,133.5,133.46,7.49008325]
[1765031780087,5.10117988,133.48,133.43,5.10117988]
[1765031780393,5.10117988,133.46,133.44,0.67]
[1765031781077,7.492242,133.48,133.44,0.67]
[1765031781278,5.10117988,133.47,133.44,0.67]
[1765031783787,5.77117988,133.47,133.44,0.67]
[1765031783992,5.10117988,133.45,133.43,0.67]
[1765031784467,26.22338046,133.47,133.42,0.2]
[1765031784813,3.27191858,133.45,133.43,0.67]
[1765031785286,10.76539882,133.45,133.42,0.87]
[1765031785663,3.27191858,133.44,133.43,0.67]
[1765031786690,3.27191858,133.46,133.43,0.67]
[1765031786994,8.24,133.47,133.43,0.67]
[1765031786995,3.27191858,133.45,133.43,0.67]
[1765031788294,3.27191858,133.46,133.43,0.67]
[1765031790088,3.27191858,133.44,133.42,0.2]
[1765031790283,3.27191858,133.44,133.43,0.67]
[1765031791300,3.27191858,133.44,133.42,0.87]
[1765031792199,3.27191858,133.44,133.42,0.2]
[1765031792390,3.27191858,133.44,133.42,0.87]
[1765031792788,3.27191858,133.43,133.42,0.87]
[1765031792993,3.27191858,133.44,133.42,0.87]
[1765031793593,3.94191858,133.43,133.42,0.2]
[1765031793999,3.27191858,133.43,133.42,0.2]
[1765031794714,3.94191858,133.43,133.42,0.2]
[1765031794890,3.27191858,133.43,133.42,0.2]
[1765031795583,3.27191858,133.44,133.42,0.87]
[1765031796198,8.16355003,133.45,133.42,0.87]
[1765031796388,3.27191858,133.43,133.42,0.87]
[1765031797990,3.27191858,133.44,133.42,0.87]
[1765031798197,111.24,133.46,133.43,0.67]
[1765031798198,106.27191858,133.46,133.43,0.67]
[1765031799304,103.0,133.46,133.43,11.43608186]
[1765031799807,103.0,133.46,133.44,0.71]
[1765031800012,103.0,133.46,133.44,3.98191858]
[1765031800394,103.0,133.46,133.45,0.71]
[1765031801722,27.53514306,133.51,133.45,19.71536181]
[1765031801723,3.27191858,133.51,133.45,19.71536181]
[1765031801892,3.27191858,133.5,133.46,0.71]
[1765031802291,3.27191858,133.49,133.46,0.71]
[1765031802515,3.27191858,133.49,133.46,8.95]
[1765031802818,3.98191858,133.5,133.47,0.71]
[1765031803622,3.27191858,133.5,133.47,0.71]
[1765031804214,3.98191858,133.5,133.47,0.71]
[1765031804626,3.98191858,133.49,133.46,8.24]
[1765031804921,3.98191858,133.49,133.46,0.71]
[1765031805119,3.98191858,133.49,133.45,3.27191858]
[1765031805120,3.98191858,133.48,133.45,12.22191858]
[1765031805320,119.4414,133.49,133.45,0.71]
[1765031805620,3.98191858,133.48,133.45,0.71]
[1765031807497,0.71,133.48,133.45,0.71]
[1765031807718,3.98191858,133.48,133.45,0.71]
[1765031808316,11.47373954,133.48,133.45,0.71]
[1765031808824,111.24,133.49,133.45,0.71]
[1765031809004,3.27191858,133.48,133.45,0.71]
[1765031809528,3.98191858,133.48,133.45,0.71]
[1765031810407,3.27191858,133.48,133.45,0.71]
[1765031812103,122.71314231,133.49,133.45,0.71]
[1765031812503,122.00314231,133.49,133.45,3.98191858]
[1765031812700,111.24,133.49,133.45,11.47525784]
[1765031812915,103.0,133.49,133.46,3.98191858]
[1765031813321,103.0,133.49,133.47,0.71]
[1765031813739,103.0,133.49,133.47,3.98191858]
[1765031813928,7.48972159,133.52,133.47,26.47657609]
[1765031814135,10.76164017,133.52,133.48,0.71]
[1765031814517,10.76164017,133.52,133.48,23.20297094]
[1765031815437,10.76164017,133.52,133.48,30.69463734]
[1765031815629,10.76164017,133.52,133.49,0.71]
[1765031817940,11.47164017,133.52,133.49,0.71]
[1765031820129,3.98191858,133.52,133.49,0.71]
[1765031820333,3.27191858,133.52,133.49,0.71]
[1765031821049,11.51191858,133.53,133.49,11.47308989]
[1765031821412,8.24,133.53,133.5,0.71]
[1765031821612,112.51994492,133.55,133.5,3.98191858]
[1765031821613,111.19793981,133.55,133.5,3.98191858]
[1765031821838,3.27191858,133.54,133.5,3.98191858]
[1765031822020,3.27191858,133.54,133.51,0.71]
[1765031822445,10.76038288,133.54,133.51,0.71]
[1765031827735,111.95,133.55,133.51,0.71]
[1765031827736,121.99982593,133.55,133.51,0.71]
[1765031827936,3.27191858,133.57,133.53,3.27191858]
[1765031828347,111.95,133.58,133.54,0.71]
[1765031828348,115.22191858,133.58,133.54,0.71]
[1765031828735,7.4868613,133.57,133.54,0.71]
[1765031828937,118.72618869,133.58,133.54,3.98191858]
[1765031829149,121.99810727,133.58,133.54,3.98191858]
[1765031829350,121.99810727,133.58,133.55,0.7]
[1765031829857,3.27191858,133.56,133.53,8.188411]
[1765031830159,3.27191858,133.57,133.55,0.7]
[1765031831154,122.69810727,133.58,133.55,0.7]
[1765031831346,114.51191858,133.58,133.55,0.7]
[1765031831547,111.24,133.58,133.55,0.7]
[1765031831737,111.24,133.58,133.55,8.18780194]
[1765031832137,114.51191858,133.58,133.56,0.7]
[1765031832652,3.27191858,133.57,133.56,0.7]
[1765031834159,3.27191858,133.57,133.55,0.7]
[1765031834665,114.51191858,133.58,133.55,0.7]
[1765031835236,103.0,133.58,133.55,8.18757377]
[1765031835458,3.27191858,133.59,133.55,11.45949235]
[1765031835636,3.27191858,133.59,133.56,0.7]
[1765031835836,11.51191858,133.6,133.56,0.7]
[1765031836464,3.27191858,133.59,133.56,0.7]
[1765031838938,3.27191858,133.59,133.56,8.18715611]
[1765031839145,3.27191858,133.59,133.57,0.7]
[1765031842568,3.97191858,133.58,133.55,7.48766203]
[1765031842771,3.27191858,133.57,133.55,8.18766203]
[1765031842947,3.27191858,133.57,133.56,0.7]
[1765031843802,3.27191858,133.57,133.55,8.18766203]
[1765031844065,3.27191858,133.57,133.55,7.48766203]
[1765031844268,3.27191858,133.57,133.56,0.7]
[1765031844960,3.27191858,133.58,133.56,0.7]
[1765031845359,3.27191858,133.58,133.55,7.48766203]
[1765031845868,3.27191858,133.58,133.56,0.7]
[1765031846357,5.10260656,133.58,133.56,0.7]
[1765031848079,5.10260656,133.57,133.55,8.18766203]
[1765031848272,5.10260656,133.57,133.55,0.7]
[1765031849372,5.10260656,133.57,133.54,0.7]
[1765031849373,5.80260656,133.57,133.54,0.7]
[1765031849587,5.10260656,133.57,133.54,0.7]
[1765031850375,5.10260656,133.57,133.54,8.18837335]
[1765031850773,5.80260656,133.56,133.53,0.7]
[1765031850968,5.10260656,133.55,133.52,7.48942057]
[1765031851149,5.10260656,133.55,133.53,0.7]
[1765031852370,121.71496953,133.59,133.54,5.10260656]
[1765031852371,5.10260656,133.58,133.54,5.10260656]
[1765031852783,5.10260656,133.58,133.55,0.7]
[1765031853452,5.10260656,133.57,133.55,0.7]
[1765031853658,5.10260656,133.57,133.54,0.7]
[1765031853866,5.80260656,133.57,133.54,0.7]
[1765031854052,5.10260656,133.57,133.54,0.7]
[1765031854576,5.10260656,133.57,133.54,8.18827958]
[1765031855049,5.10260656,133.57,133.55,0.7]
[1765031857881,111.18568007,133.59,133.55,0.7]
[1765031858080,5.10260656,133.57,133.55,0.7]
[1765031858466,5.10260656,133.58,133.55,0.7]
[1765031858672,5.80260656,133.58,133.55,0.7]
[1765031860576,5.10260656,133.57,133.55,0.7]
[1765031874397,14.03260656,133.56,133.53,0.66]
[1765031874607,14.03260656,133.56,133.51,0.66]
[1765031874608,5.10260656,133.54,133.51,0.66]
[1765031874777,5.10260656,133.52,133.51,0.66]
[1765031881795,5.10260656,133.52,133.5,0.7]
[1765031882112,5.10260656,133.51,133.5,0.7]
[1765031884081,8.1890721,133.53,133.5,0.7]
[1765031884082,15.72844894,133.54,133.5,0.7]
[1765031884305,9.50994492,133.57,133.5,21.53299157]
[1765031884512,5.10260656,133.54,133.51,0.7]
[1765031885008,5.10260656,133.53,133.51,0.7]
[1765031885386,0.7,133.54,133.51,0.7]
[1765031885586,8.24,133.55,133.51,0.7]
[1765031885587,5.10260656,133.53,133.51,0.7]
[1765031889210,5.10260656,133.52,133.49,7.49110023]
[1765031889386,5.10260656,133.52,133.51,0.66]
[1765031890410,5.10260656,133.52,133.49,7.49110023]
[1765031890610,5.10260656,133.51,133.5,0.66]
[1765031893216,5.10260656,133.53,133.5,8.15053417]
[1765031893542,18.71565009,133.58,133.52,5.10260656]
[1765031893718,5.10260656,133.56,133.52,5.10260656]
[1765031894019,5.10260656,133.56,133.53,0.66]
[1765031896201,5.10260656,133.54,133.52,0.66]
[1765031896403,8.17732119,133.56,133.5,7.49014327]
[1765031896404,5.10260656,133.53,133.5,7.49014327]
[1765031896609,5.10260656,133.52,133.5,7.49014327]
[1765031896798,5.10260656,133.52,133.51,0.66]
[1765031897513,5.10260656,133.53,133.51,0.66]
[1765031901925,5.10260656,133.53,133.5,0.66]
[1765031901926,5.10260656,133.52,133.5,0.66]
[1765031902122,7.48786028,133.55,133.51,0.66]
[1765031902323,5.10260656,133.53,133.51,0.66]
[1765031903628,7.48786028,133.55,133.51,0.66]
[1765031903852,5.10260656,133.54,133.51,0.66]
[1765031906020,5.10260656,133.55,133.51,8.14989844]
[1765031906209,115.58991238,133.56,133.51,21.492505]
[1765031906536,113.75385394,133.56,133.52,0.66]
[1765031906908,3.26654812,133.59,133.54,3.26654812]
[1765031907112,3.26654812,133.59,133.55,0.66]
[1765031908617,10.75220882,133.59,133.55,0.66]
[1765031909338,16.308864,133.61,133.57,3.26654812]
[1765031909513,3.26654812,133.61,133.57,3.26654812]
[1765031909712,8.17401717,133.62,133.58,0.66]
[1765031909918,3.26654812,133.61,133.58,0.66]
[1765031911116,10.75056529,133.62,133.58,8.14611683]
[1765031911524,3.26654812,133.61,133.59,0.66]
[1765031913937,3.26654812,133.62,133.59,0.66]
[1765031914824,3.26654812,133.61,133.59,0.66]
[1765031917039,3.26654812,133.61,133.59,8.1455889]
[1765031917229,0.1,133.63,133.59,8.1455889]
[1765031917230,3.26654812,133.62,133.59,8.1455889]
[1765031917556,3.26654812,133.62,133.6,0.66]
[1765031918137,0.1,133.63,133.6,0.66]
[1765031918345,3.36654812,133.63,133.6,8.14470714]
[1765031918566,3.36654812,133.63,133.61,0.66]
[1765031918874,4.05654812,133.63,133.6,8.14470714]
[1765031919021,3.36654812,133.63,133.6,8.14470714]
[1765031919637,3.36654812,133.63,133.6,8.18470714]
[1765031919848,3.36654812,133.63,133.6,7.48470714]
[1765031920054,3.36654812,133.63,133.6,8.18470714]
[1765031920234,0.1,133.63,133.59,7.48559023]
[1765031920435,3.36654812,133.63,133.59,8.18559023]
[1765031920633,3.36654812,133.63,133.6,0.7]
[1765031921848,0.1,133.63,133.6,8.18484786]
[1765031922026,4.07654812,133.63,133.6,8.18484786]
[1765031922347,3.26654812,133.62,133.6,8.18484786]
[1765031923140,3.26654812,133.62,133.61,0.7]
[1765031923357,0.1,133.63,133.61,0.7]
[1765031923825,0.1,133.63,133.62,3.26654812]
[1765031924024,0.1,133.63,133.62,10.75045771]
[1765031924240,0.1,133.63,133.62,11.45045771]
[1765031925039,0.1,133.63,133.62,8.18390959]
[1765031925540,0.1,133.63,133.59,16.308864]
[1765031925541,4.07654812,133.63,133.59,0.7]
[1765031925847,3.26654812,133.61,133.58,8.186103]
[1765031926221,3.26654812,133.61,133.59,0.7]
[1765031929048,3.26654812,133.6,133.58,7.48601885]
[1765031929356,3.26654812,133.6,133.58,8.18601885]
[1765031929549,7.58352568,133.63,133.58,7.48601885]
[1765031929747,3.26654812,133.6,133.58,8.18601885]
[1765031929936,3.26654812,133.61,133.59,8.18559023]
[1765031930124,0.1,133.63,133.59,8.18559023]
[1765031930451,0.1,133.63,133.6,0.7]
[1765031930834,3.26654812,133.62,133.6,0.7]
[1765031931035,3.36654812,133.63,133.61,7.48446972]
[1765031931247,0.1,133.63,133.61,7.48446972]
[1765031931448,0.1,133.63,133.62,0.66]
[1765031933133,3.36654812,133.63,133.6,16.3849083]
[1765031933460,3.36654812,133.63,133.59,7.48546413]
[1765031933461,3.26654812,133.61,133.59,7.48546413]
[1765031933658,3.26654812,133.61,133.59,8.14546413]
[1765031934238,3.26654812,133.61,133.6,0.66]
[1765031934445,0.1,133.63,133.6,8.14494023]
[1765031934446,3.26654812,133.62,133.6,8.14494023]
[1765031934854,0.1,133.63,133.61,0.66]
[1765031935054,3.36654812,133.63,133.61,0.66]
[1765031935648,3.36654812,133.63,133.61,8.14433972]
[1765031937059,3.36654812,133.63,133.6,0.66]
[1765031938339,3.36654812,133.63,133.6,8.14448514]
[1765031939056,0.71,133.62,133.57,19.57541212]
[1765031939258,3.26654812,133.61,133.58,0.66]
[1765031940645,3.26654812,133.61,133.58,8.14604726]
[1765031941133,3.26654812,133.61,133.59,0.66]
[1765031941377,0.71,133.62,133.59,0.66]
[1765031941554,3.26654812,133.61,133.58,7.48604726]
[1765031941762,3.26654812,133.61,133.58,8.14604726]
[1765031941968,3.97654812,133.61,133.58,8.14604726]
[1765031942450,3.26654812,133.61,133.58,8.14604726]
[1765031942765,3.26654812,133.61,133.57,24.548864]
[1765031942766,3.97654812,133.6,133.57,8.14659487]
[1765031943151,3.26654812,133.6,133.57,8.14659487]
[1765031943675,3.26654812,133.6,133.58,0.66]
[1765031944443,8.19392964,133.62,133.58,8.14613643]
[1765031944444,3.26654812,133.61,133.58,8.14613643]
[1765031945247,3.26654812,133.6,133.58,0.66]
[1765031945874,3.26654812,133.61,133.58,0.66]
[1765031947053,3.26654812,133.59,133.56,8.14720488]
[1765031947476,3.26654812,133.59,133.57,0.66]
[1765031947775,3.26654812,133.59,133.56,7.48720488]
[1765031947983,3.26654812,133.59,133.55,16.38775487]
[1765031947984,3.26654812,133.58,133.55,16.38775487]
[1765031948561,3.26654812,133.58,133.56,0.66]
[1765031948767,3.26654812,133.59,133.56,8.14725009]
[1765031949166,110.4843539,133.62,133.56,8.14725009]
[1765031949484,3.26654812,133.6,133.57,0.67]
[1765031949864,111.1943539,133.62,133.57,0.67]
[1765031950179,3.26654812,133.61,133.57,3.93654812]
[1765031950785,3.26654812,133.61,133.58,0.67]
[1765031951785,3.26654812,133.61,133.58,8.15580176]
[1765031951963,3.26654812,133.62,133.59,0.67]
[1765031953067,3.26654812,133.62,133.59,8.15556144]
[1765031953567,3.26654812,133.62,133.6,0.67]
[1765031955889,9.05,133.63,133.6,0.67]
[1765031955890,3.26654812,133.61,133.6,0.67]
[1765031956903,3.26654812,133.61,133.59,8.15556144]
[1765031957107,3.26654812,133.6,133.58,15.72606574]
[1765031957266,0.71,133.62,133.59,0.67]
[1765031957592,3.26654812,133.6,133.59,0.67]
[1765031957772,3.26654812,133.6,133.58,8.15606574]
[1765031958389,15.82342774,133.63,133.59,0.67]
[1765031958585,3.26654812,133.6,133.59,0.67]
[1765031958789,3.26654812,133.6,133.57,7.48671108]
[1765031958990,3.26654812,133.59,133.57,0.67]
[1765031959406,3.26654812,133.58,133.56,0.67]
[1765031959702,3.26654812,133.58,133.55,8.15769627]
[1765031960968,3.26654812,133.58,133.56,0.67]
[1765031961393,3.26654812,133.58,133.55,8.15769627]
[1765031962090,3.26654812,133.56,133.53,8.15842427]
[1765031962486,3.97654812,133.56,133.53,8.15842427]
[1765031962798,3.26654812,133.56,133.53,8.15842427]
[1765031963191,3.26654812,133.56,133.54,0.67]
[1765031963392,3.26654812,133.56,133.52,8.15951467]
[1765031963393,3.26654812,133.55,133.52,8.15951467]
[1765031963574,3.26654812,133.55,133.53,0.67]
[1765031964777,0.71,133.56,133.52,8.15951467]
[1765031964778,3.26654812,133.54,133.52,8.15951467]
[1765031965098,3.26654812,133.54,133.53,0.67]
[1765031966196,9.51994492,133.58,133.53,0.67]
[1765031966374,3.26654812,133.56,133.53,0.67]
[1765031966770,3.26654812,133.55,133.53,0.67]
[1765031968508,3.26654812,133.55,133.51,27.81541212]
[1765031968509,5.1052684,133.54,133.51,16.40000773]
[1765031968811,5.1052684,133.54,133.52,0.67]
[1765031969711,5.1052684,133.56,133.52,8.15944242]
[1765031969933,5.1052684,133.55,133.52,8.15944242]
[1765031970201,5.1052684,133.55,133.53,0.67]
[1765031973895,5.1052684,133.56,133.53,0.67]
[1765031974100,5.8152684,133.58,133.53,13.26394883]
[1765031974587,5.1052684,133.57,133.54,0.67]
[1765031975492,0.71,133.58,133.54,8.15822835]
[1765031975694,5.1052684,133.57,133.54,8.15822835]
[1765031975900,5.1052684,133.58,133.55,0.67]
[1765031976083,5.1052684,133.59,133.55,5.7752684]
[1765031976407,5.1052684,133.59,133.56,0.67]
[1765031977789,5.1052684,133.58,133.56,0.67]
[1765031978495,5.8152684,133.58,133.55,7.48756872]
[1765031978810,5.1052684,133.57,133.55,8.15756872]
[1765031979112,5.1052684,133.58,133.56,0.71]
[1765031979415,5.1052684,133.59,133.56,0.71]
[1765031979590,5.1052684,133.59,133.56,8.19722992]
[1765031979910,5.1052684,133.6,133.56,8.19722992]
[1765031980113,5.1052684,133.6,133.57,0.71]
[1765031981197,5.1052684,133.6,133.57,8.1965274]
[1765031982612,5.1052684,133.6,133.58,0.71]
[1765031983720,5.1052684,133.59,133.56,7.48716504]
[1765031983889,5.1052684,133.58,133.55,0.71]
[1765031984706,5.1052684,133.58,133.55,8.19780819]
[1765031984909,5.1052684,133.56,133.53,0.71]
[1765031985304,5.1052684,133.57,133.53,8.19852009]
[1765031985635,5.1052684,133.57,133.53,13.30378849]
[1765031985815,5.1052684,133.57,133.54,0.71]
[1765031986396,5.1052684,133.58,133.54,5.8152684]
[1765031986906,5.1052684,133.58,133.55,0.71]
[1765031987102,5.1052684,133.59,133.55,13.30298344]
[1765031987310,5.1052684,133.6,133.55,13.30298344]
[1765031987531,5.1052684,133.6,133.56,0.71]
[1765031988102,5.1052684,133.61,133.56,5.8152684]
[1765031988611,5.8152684,133.61,133.57,0.71]
[1765031989121,0.71,133.61,133.57,8.19661467]
[1765031989418,5.3152684,133.61,133.58,0.71]
[1765031989624,5.1052684,133.61,133.58,0.71]
[1765031990729,5.1052684,133.6,133.57,7.48661467]
[1765031990918,5.1052684,133.6,133.58,0.69]
[1765031991110,5.1052684,133.59,133.58,0.69]
[1765031991312,5.1052684,133.6,133.58,0.69]
[1765031994325,15.72401243,133.62,133.58,0.69]
[1765031994326,5.1052684,133.62,133.58,13.28129995]
[1765031994531,5.1052684,133.62,133.59,0.69]
[1765031995244,0.1,133.63,133.6,5.1052684]
[1765031995409,0.1,133.63,133.61,0.69]
[1765031996750,0.1,133.63,133.61,8.17444277]
[1765031996912,0.1,133.63,133.62,0.69]
[1765031998639,0.1,133.63,133.62,8.17390959]
[1765031999461,0.1,133.63,133.62,13.27917799]
[1765032001360,0.1,133.63,133.62,8.17390959]
[1765032001862,0.1,133.63,133.62,13.27917799]
[1765032003042,0.1,133.63,133.62,8.17390959]
[1765032003344,0.1,133.63,133.62,0.69]
[1765032003546,0.1,133.63,133.62,8.17390959]
[1765032003741,0.1,133.63,133.62,13.27917799]
[1765032004858,0.1,133.63,133.62,8.17390959]
[1765032005161,0.1,133.63,133.62,13.27917799]
[1765032007058,0.1,133.63,133.62,18.48444639]
[1765032007432,0.1,133.63,133.62,13.37917799]
[1765032007637,0.1,133.63,133.62,18.48444639]
[1765032009463,0.1,133.63,133.62,13.27917799]
[1765032009639,0.1,133.63,133.62,8.17390959]
[1765032010442,0.1,133.63,133.62,13.27917799]
[1765032014170,0.1,133.63,133.62,8.17390959]
[1765032014477,0.1,133.63,133.62,13.27917799]
[1765032015577,0.1,133.63,133.61,13.4452684]
[1765032015578,0.1,133.63,133.61,15.72431498]
[1765032015757,0.1,133.63,133.61,16.43431498]
[1765032016573,0.1,133.63,133.61,15.72431498]
[1765032016779,0.1,133.63,133.61,16.43431498]
[1765032017878,0.1,133.63,133.62,0.71]
[1765032019366,0.1,133.63,133.62,8.19390959]
[1765032020057,0.1,133.63,133.61,15.72434497]
[1765032020377,5.4152684,133.63,133.59,26.50475321]
[1765032020586,5.2052684,133.63,133.6,0.71]
[1765032021681,5.2052684,133.63,133.6,8.19481678]
[1765032022456,5.4152684,133.63,133.6,8.19481678]
[1765032023167,5.1052684,133.62,133.6,8.19481678]
[1765032024183,5.1052684,133.62,133.58,0.71]
[1765032024184,5.1052684,133.61,133.58,0.71]
[1765032025354,5.3152684,133.6,133.57,15.72666517]
[1765032025556,5.3152684,133.6,133.57,8.19666517]
[1765032025756,5.3152684,133.6,133.57,7.48666517]
[1765032025966,5.1052684,133.59,133.57,8.19666517]
[1765032026501,5.1052684,133.6,133.57,8.19666517]
[1765032027568,0.1,133.63,133.57,7.48666517]
[1765032027795,5.1052684,133.61,133.58,0.71]
[1765032028666,5.1052684,133.61,133.58,8.19577342]
[1765032030399,3.26406315,133.61,133.58,8.19577342]
[1765032031793,3.26406315,133.61,133.59,0.71]
[1765032032176,3.26406315,133.61,133.58,0.71]
[1765032032812,3.26406315,133.61,133.58,8.19586885]
[1765032033171,3.26406315,133.61,133.59,0.71]
[1765032033588,3.26406315,133.6,133.57,8.1965671]
[1765032033765,3.47406315,133.6,133.57,8.1965671]
[1765032034398,3.26406315,133.6,133.57,8.1965671]
[1765032035503,3.26406315,133.59,133.57,7.4865671]
[1765032035706,3.26406315,133.59,133.57,8.1965671]
[1765032038604,3.26406315,133.59,133.57,0.71]
[1765032038908,3.26406315,133.59,133.57,0.67]
[1765032040281,3.26406315,133.59,133.56,8.15704419]
[1765032041595,3.26406315,133.59,133.57,0.67]
[1765032045413,3.26406315,133.6,133.57,0.67]
[1765032045973,3.26406315,133.6,133.57,8.15664734]
[1765032049700,3.26406315,133.6,133.58,0.67]
[1765032049904,3.26406315,133.61,133.58,0.67]
[1765032050911,3.26406315,133.61,133.58,8.15606906]
[1765032052401,3.47406315,133.61,133.58,8.15606906]
[1765032052908,3.26406315,133.61,133.58,8.15606906]
[1765032053887,3.47406315,133.61,133.58,8.15606906]
[1765032054207,3.26406315,133.61,133.58,8.15606906]
[1765032054596,3.47406315,133.61,133.58,8.15606906]
[1765032054800,3.26406315,133.6,133.58,8.15606906]
[1765032056316,3.26406315,133.59,133.57,7.48657111]
[1765032056608,3.26406315,133.59,133.57,8.15657111]
[1765032057915,3.26406315,133.6,133.58,0.67]
[1765032059002,0.21,133.61,133.58,0.67]
[1765032063324,7.69454473,133.61,133.56,7.48722414]
[1765032063822,0.21,133.6,133.56,30.6350273]
[1765032065726,7.48454473,133.61,133.56,29.9650273]
[1765032065898,7.48454473,133.61,133.57,0.67]
[1765032066432,7.69454473,133.61,133.57,8.15667059]
[1765032068127,7.69454473,133.61,133.57,0.67]
[1765032068431,0.21,133.6,133.57,0.67]
[1765032068926,7.69454473,133.61,133.57,0.67]
[1765032071332,0.21,133.6,133.57,0.67]
[1765032072101,7.48454473,133.61,133.57,0.67]
[1765032072302,7.69454473,133.61,133.57,0.67]
[1765032073027,7.48454473,133.61,133.57,0.67]
[1765032073528,0.21,133.6,133.57,0.67]
[1765032073729,3.26406315,133.6,133.57,8.15655812]
[1765032073913,3.26406315,133.59,133.57,8.15655812]
[1765032074115,3.26406315,133.59,133.58,0.66]
[1765032074903,3.26406315,133.6,133.58,0.66]
[1765032075539,118.7240669,133.62,133.58,0.66]
[1765032075709,118.9340669,133.62,133.58,0.66]
[1765032075909,106.26406315,133.62,133.58,8.14600589]
[1765032076326,0.21,133.61,133.59,22.47443532]
[1765032076555,3.26406315,133.6,133.57,0.66]
[1765032076732,3.26406315,133.59,133.57,8.14662638]
[1765032077739,3.26406315,133.59,133.58,0.66]
[1765032077912,0.21,133.61,133.58,0.66]
[1765032080516,8.24,133.61,133.58,0.66]
[1765032080717,8.45,133.61,133.58,0.66]
[1765032081118,3.26406315,133.6,133.58,0.66]
[1765032084648,3.26406315,133.59,133.56,29.96155557]
[1765032084822,3.26406315,133.59,133.57,0.66]
[1765032085740,3.26406315,133.59,133.55,23.13948746]
[1765032085931,11.71406315,133.59,133.56,0.66]
[1765032087644,11.50406315,133.59,133.56,0.66]
[1765032088741,11.71406315,133.59,133.56,0.66]
[1765032090224,11.50406315,133.59,133.56,0.66]
[1765032090438,13.34190905,133.59,133.56,0.66]
[1765032090639,8.24,133.59,133.56,8.14725027]
[1765032092949,8.24,133.59,133.56,7.48725027]
[1765032093148,8.24,133.59,133.55,7.48783227]
[1765032093355,8.24,133.59,133.56,0.66]
[1765032098054,115.79698642,133.6,133.56,13.24866294]
[1765032098055,103.0,133.6,133.56,13.24866294]
[1765032098253,103.0,133.6,133.58,5.10190905]
[1765032098551,103.0,133.6,133.59,0.66]
[1765032098933,103.0,133.6,133.59,5.76190905]
[1765032099136,0.1,133.63,133.59,5.76190905]
[1765032099355,0.1,133.63,133.6,5.81190905]
[1765032099741,0.1,133.63,133.61,0.71]
[1765032105445,0.1,133.63,133.61,13.29611638]
[1765032105938,0.1,133.63,133.62,23.17938546]
[1765032106138,0.1,133.63,133.62,0.71]
[1765032106362,0.1,133.63,133.62,14.15190905]
[1765032109874,0.1,133.63,133.6,0.71]
[1765032110165,5.20190905,133.63,133.6,0.71]
[1765032112661,5.20190905,133.63,133.6,8.19499068]
[1765032112863,5.20190905,133.63,133.6,7.48499068]
[1765032113064,5.20190905,133.63,133.61,0.65]
[1765032113367,0.1,133.63,133.61,0.65]
[1765032120679,0.1,133.63,133.61,8.13438788]
[1765032121052,0.1,133.63,133.62,0.65]
[1765032123850,0.1,133.63,133.62,8.13390959]
[1765032124955,0.1,133.63,133.62,13.23581864]
[1765032125861,0.1,133.63,133.62,21.57581864]
[1765032126784,0.1,133.63,133.62,30.38576356]
[1765032128084,0.1,133.63,133.62,21.57581864]
[1765032131087,0.1,133.63,133.61,7.48434372]
[1765032131475,0.1,133.63,133.61,8.13434372]
[1765032131790,0.1,133.63,133.62,8.13390959]
[1765032132001,0.1,133.63,133.62,13.23581864]